fUSD/lending_fUSD_20250402
["ID","MTS","AMOUNT","RATE_DAILY","PERIOD"]
[357033824,1743604288552,-500.0,0.00054794,120]
[357033825,1743604288589,-511.89373592,0.00054794,120]
[357033826,1743604288626,-500.0,0.00054794,120]
[357033827,1743604288662,-500.0,0.00054794,120]
[357033828,1743604288697,-500.0,0.00054794,120]
[357033829,1743604288732,-500.0,0.00054794,120]
[357033830,1743604288768,-500.0,0.00054794,120]
[357033831,1743604288803,-506.65010256,0.00054794,120]
[357033832,1743604288838,-500.0,0.00054794,120]
[357033833,1743604288872,-500.0,0.00054794,120]
[357033834,1743604288909,-500.0,0.00054794,120]
[357033835,1743604288944,-500.0,0.00054794,120]
[357033836,1743604288982,-500.0,0.00054794,120]
[357033837,1743604289017,-512.21380673,0.00054794,120]
[357033838,1743604289054,-561.81121677,0.00054794,120]
[357033839,1743604289094,-500.0,0.00054794,120]
[357033840,1743604289135,-568.34634829,0.00054794,120]
[357033841,1743604289179,-500.0,0.00054794,120]
[357033842,1743604289222,-500.0,0.00054794,120]
[357033843,1743604289266,-500.0,0.00054794,120]
[357033844,1743604289309,-500.0,0.00054794,120]
[357033845,1743604289351,-500.0,0.00054794,120]
[357033846,1743604289397,-500.0,0.00054794,120]
[357033847,1743604289439,-500.0,0.00054794,120]
[357033848,1743604289480,-279.37179312,0.00054794,120]
[357033849,1743604289518,-500.0,0.00054794,120]
[357033850,1743604289556,-607.88054903,0.00054794,120]
[357033851,1743604289596,-450.05509817,0.00054794,120]
[357033852,1743604289639,-500.0,0.00054794,120]
[357033853,1743604289680,-500.0,0.00054794,120]
[357033854,1743604289719,-579.09984208,0.00054794,120]
[357033855,1743604289757,-500.0,0.00054794,120]
[357033856,1743604289796,-500.0,0.00054794,120]
[357033857,1743604289834,-500.0,0.00054794,120]
[357033858,1743604289872,-500.0,0.00054794,120]
[357033859,1743604289913,-500.0,0.00054794,120]
[357033860,1743604289952,-500.0,0.00054794,120]
[357033861,1743604289989,-550.63886622,0.00054794,120]
[357033862,1743604290026,-500.0,0.00054794,120]
[357033863,1743604290063,-569.4538989,0.00054794,120]
[357033864,1743604290099,-500.0,0.00054794,120]
[357033865,1743604290140,-513.13420197,0.00054794,120]
[357033866,1743604290178,-500.0,0.00054794,120]
[357033867,1743604290216,-500.0,0.00054794,120]
[357033868,1743604290255,-500.0,0.00054794,120]
[357033869,1743604290296,-500.0,0.00054794,120]
[357033870,1743604290334,-500.0,0.00054794,120]
[357033871,1743604290373,-500.0,0.00054794,120]
[357033872,1743604290411,-500.0,0.00054794,120]
[357033873,1743604290450,-500.0,0.00054794,120]
[357033874,1743604290487,-500.0,0.00054794,120]
[357033875,1743604290524,-500.0,0.00054794,120]
[357033876,1743604290561,-500.0,0.00054794,120]
[357033877,1743604290600,-500.0,0.00054794,120]
[357033878,1743604290637,-500.0,0.00054794,120]
[357033879,1743604290675,-500.0,0.00054794,120]
[357033880,1743604290711,-500.0,0.00054794,120]
[357033881,1743604290750,-500.0,0.00054794,120]
[357033882,1743604290788,-500.0,0.00054794,120]
[357033883,1743604290833,-537.4716261,0.00054794,120]
[357033884,1743604290872,-523.91756508,0.00054794,120]
[357033885,1743604290912,-167.61,0.00054794,120]
[357033886,1743604290951,-523.95510318,0.00054794,120]
[357033887,1743604290988,-500.0,0.00054794,120]
[357033888,1743604291024,-540.67096937,0.00054794,120]
[357033889,1743604291061,-500.0,0.00054794,120]
[357033890,1743604291099,-500.0,0.00054794,120]
[357033891,1743604291138,-500.0,0.00054794,120]
[357033892,1743604291175,-500.0,0.00054794,120]
[357033893,1743604291215,-500.0,0.00054794,120]
[357033894,1743604291254,-500.0,0.00054794,120]
[357033895,1743604291291,-500.0,0.00054794,120]
[357033896,1743604291328,-500.0,0.00054794,120]
[357033897,1743604291367,-500.0,0.00054794,120]
[357033898,1743604291405,-1410.46,0.00054794,120]
[357033899,1743604291443,-500.0,0.00054794,120]
[357033900,1743604291583,-500.0,0.00054794,120]
[357033901,1743604291622,-500.0,0.00054794,120]
[357033902,1743604291660,-500.0,0.00054794,120]
[357033903,1743604291697,-500.0,0.00054794,120]
[357033904,1743604291734,-500.0,0.00054794,120]
[357033905,1743604291769,-1065.07135769,0.00054794,120]
[357033906,1743604291806,-504.99223168,0.00054794,120]
[357033907,1743604291843,-500.0,0.00054794,120]
[357033908,1743604291881,-500.0,0.00054794,120]
[357033909,1743604291919,-500.0,0.00054794,120]
[357033910,1743604291955,-500.0,0.00054794,120]
[357033911,1743604291990,-500.0,0.00054794,120]
[357033912,1743604292027,-500.0,0.00054794,120]
[357033913,1743604292063,-233.28618752,0.00054794,120]
[357033914,1743604292102,-615.13860981,0.00054794,120]
[357033915,1743604292140,-500.0,0.00054794,120]
[357033916,1743604292177,-500.0,0.00054794,120]
[357033917,1743604292213,-500.0,0.00054794,120]
[357033918,1743604292250,-502.68,0.00054794,120]
[357033919,1743604292287,-500.0,0.00054794,120]
[357033920,1743604292326,-500.0,0.00054794,120]
[357033921,1743604292364,-500.0,0.00054794,120]
[357033922,1743604292403,-588.39676595,0.00054794,120]
[357033923,1743604292441,-500.0,0.00054794,120]
[357033924,1743604292480,-500.0,0.00054794,120]
[357033925,1743604292516,-500.0,0.00054794,120]
[357033926,1743604292551,-500.0,0.00054794,120]
[357033927,1743604292586,-500.0,0.00054794,120]
[357033928,1743604292623,-500.0,0.00054794,120]
[357033929,1743604292663,-500.0,0.00054794,120]
[357033930,1743604292699,-500.0,0.00054794,120]
[357033931,1743604292736,-500.0,0.00054794,120]
[357033932,1743604292772,-500.0,0.00054794,120]
[357033933,1743604292808,-500.0,0.00054794,120]
[357033934,1743604292843,-500.0,0.00054794,120]
[357033935,1743604292877,-500.0,0.00054794,120]
[357033936,1743604292913,-500.0,0.00054794,120]
[357033937,1743604292948,-500.0,0.00054794,100]
[357033938,1743604292983,-542.94842918,0.00054794,120]
[357033939,1743604293018,-500.0,0.00054794,120]
[357033940,1743604293054,-404.48034243,0.00054794,120]
[357033941,1743604293090,-500.0,0.00054794,120]
[357033942,1743604293130,-343.22238701,0.00054794,120]
[357033943,1743604293170,-500.0,0.00054794,120]
[357033944,1743604293208,-500.0,0.00054794,120]
[357033945,1743604293246,-500.0,0.00054794,120]
[357033946,1743604293284,-500.0,0.00054794,120]
[357033947,1743604293324,-500.0,0.00054794,120]
[357033948,1743604293363,-5246.61,0.00054794,120]
[357033949,1743604293401,-500.0,0.00054794,120]
[357033950,1743604293439,-504.17042769,0.00054794,120]
[357033951,1743604293477,-500.0,0.00054794,120]
[357033952,1743604293515,-500.0,0.00054794,120]
[357033953,1743604293551,-507.24413118,0.00054794,120]
[357033954,1743604293589,-511.79394451,0.00054794,120]
[357033955,1743604293626,-500.0,0.00054794,120]
[357033956,1743604293665,-500.0,0.00054794,120]
[357033957,1743604293703,-500.0,0.00054794,120]
[357033958,1743604293739,-500.0,0.00054794,120]
[357033959,1743604293774,-500.0,0.00054794,120]
[357033960,1743604293812,-197.82949936,0.00054794,120]
[357033961,1743604293848,-521.86233351,0.00054794,120]
[357033962,1743604293886,-500.0,0.00054794,120]
[357033963,1743604293925,-539.63248054,0.00054794,120]
[357033964,1743604293962,-500.0,0.00054794,30]
[357033965,1743604293999,-562.17218483,0.00054794,120]
[357033966,1743604294037,-521.34404973,0.00054794,120]
[357033967,1743604294072,-500.0,0.00054794,120]
[357033968,1743604294110,-608.01726238,0.00054794,120]
[357033969,1743604294147,-531.68513895,0.00054794,120]
[357033970,1743604294186,-500.0,0.00054794,120]
[357033971,1743604294224,-500.0,0.00054794,120]
[357033972,1743604294264,-500.0,0.00054794,120]
[357033973,1743604294303,-518.37819294,0.00054794,120]
[357033974,1743604294341,-500.0,0.00054794,120]
[357033975,1743604294379,-512.30496335,0.00054794,120]
[357033976,1743604294420,-500.0,0.00054794,120]
[357033977,1743604294458,-1181.33,0.00054794,120]
[357033978,1743604294496,-500.0,0.00054794,120]
[357033979,1743604294533,-500.0,0.00054794,120]
[357033980,1743604294570,-500.0,0.00054794,120]
[357033981,1743604294704,-517.35674477,0.00054794,120]
[357033982,1743604294743,-565.1284842,0.00054794,120]
[357033983,1743604294781,-500.0,0.00054794,120]
[357033984,1743604294821,-500.0,0.00054794,120]
[357033985,1743604294858,-500.0,0.00054794,120]
[357033986,1743604294899,-524.69873181,0.00054794,120]
[357033987,1743604294935,-884.05,0.00054794,120]
[357033988,1743604294973,-500.0,0.00054794,120]
[357033989,1743604295009,-179.56782594,0.00054794,120]
[357033990,1743604295044,-500.0,0.00054794,120]
[357033991,1743604295080,-500.0,0.00054794,120]
[357033992,1743604295118,-500.0,0.00054794,120]
[357033993,1743604295155,-500.0,0.00054794,120]
[357033994,1743604295192,-500.0,0.00054794,120]
[357033995,1743604295228,-500.0,0.00054794,120]
[357033996,1743604295265,-500.0,0.00054794,120]
[357033997,1743604295301,-500.0,0.00054794,120]
[357033998,1743604295339,-500.0,0.00054794,120]
[357033999,1743604295377,-500.0,0.00054794,120]
[357034000,1743604295419,-500.0,0.00054794,120]
[357034001,1743604295460,-500.0,0.00054794,120]
[357034002,1743604295498,-500.0,0.00054794,120]
[357034003,1743604295537,-500.0,0.00054794,120]
[357034004,1743604295575,-537.15972709,0.00054794,120]
[357034005,1743604295614,-618.03398209,0.00054794,120]
[357034006,1743604295651,-2500.0,0.00054794,120]
[357034007,1743604295691,-500.0,0.00054794,120]
[357034008,1743604295728,-500.0,0.00054794,120]
[357034009,1743604295767,-500.0,0.00054794,120]
[357034010,1743604295806,-500.0,0.00054794,120]
[357034011,1743604295845,-500.0,0.00054794,120]
[357034012,1743604295881,-287.64456702,0.00054794,120]
[357034013,1743604295917,-500.0,0.00054794,120]
[357034014,1743604295952,-500.0,0.00054794,120]
[357034015,1743604295988,-500.0,0.00054794,120]
[357034016,1743604296025,-525.35262658,0.00054794,120]
[357034017,1743604296061,-317.9460638,0.00054794,120]
[357034018,1743604296099,-500.0,0.00054794,120]
[357034019,1743604296137,-500.0,0.00054794,120]
[357034020,1743604296176,-500.0,0.00054794,120]
[357034021,1743604296214,-4000.0,0.00054795,60]
[357034022,1743604296252,-500.0,0.00054795,120]
[357034023,1743604296289,-500.0,0.00054795,120]
[357034024,1743604296329,-500.0,0.00054795,120]
[357034025,1743604296368,-500.0,0.00054795,120]
[357034026,1743604296408,-500.0,0.00054795,120]
[357034027,1743604296449,-500.0,0.00054795,120]
[357034028,1743604296492,-500.0,0.00054795,120]
[357034029,1743604296532,-500.0,0.00054795,120]
[357034030,1743604296573,-500.0,0.00054795,120]
[357034031,1743604296613,-628.53991484,0.00054795,120]
[357034032,1743604296654,-500.0,0.00054795,120]
[357034033,1743604296694,-500.0,0.00054795,120]
[357034034,1743604296735,-500.0,0.00054795,120]
[357034035,1743604296774,-500.0,0.00054795,120]
[357034036,1743604296817,-500.0,0.00054795,120]
[357034037,1743604296858,-500.0,0.00054795,120]
[357034038,1743604296904,-500.0,0.00054795,120]
[357034039,1743604296944,-500.0,0.00054795,120]
[357034040,1743604296986,-500.0,0.00054795,120]
[357034041,1743604297024,-500.0,0.00054795,120]
[357034042,1743604297062,-500.0,0.00054795,120]
[357034043,1743604297100,-500.0,0.00054795,120]
[357034044,1743604297137,-500.0,0.00054795,120]
[357034045,1743604297179,-500.0,0.00054795,120]
[357034046,1743604297217,-500.0,0.00054795,120]
[357034047,1743604297254,-500.0,0.00054795,120]
[357034048,1743604297289,-500.0,0.00054795,120]
[357034049,1743604297325,-500.0,0.00054795,120]
[357034050,1743604297361,-163.12951867,0.000549,58]
[357034051,1743604297399,-2994.9021,0.00055,120]
[357034052,1743604297436,-211.0,0.00055,120]
[357034053,1743604297476,-162991.84,0.00055,120]
[357034054,1743604297513,-462.0,0.00055,120]
[357034055,1743604297552,-278.17649,0.0005501,99]
[357034056,1743604297589,-503.12317002,0.00055342,120]
[357034057,1743604297628,-500.0,0.00055342,120]
[357034058,1743604297667,-589.92450519,0.00055342,120]
[357034059,1743604297780,-345.33885274,0.00055342,120]
[357034060,1743604297838,-500.0,0.00055342,120]
[357034061,1743604297877,-500.0,0.00055342,120]
[357034062,1743604297915,-531.08844659,0.00055342,120]
[357034063,1743604297952,-523.98996355,0.00055342,120]
[357034064,1743604297992,-500.0,0.00055342,120]
[357034065,1743604298030,-500.0,0.00055342,120]
[357034066,1743604298068,-500.0,0.00055342,120]
[357034067,1743604298106,-500.0,0.00055342,120]
[357034068,1743604298143,-575.61369498,0.00055342,120]
[357034069,1743604298180,-500.0,0.00055342,120]
[357034070,1743604298217,-533.44942908,0.00055342,120]
[357034071,1743604298254,-512.02942695,0.00055342,120]
[357034072,1743604298292,-500.0,0.00055342,120]
[357034073,1743604298329,-529.74489074,0.00055342,120]
[357034074,1743604298366,-510.32124701,0.00055342,120]
[357034075,1743604298403,-500.0,0.00055342,120]
[357034076,1743604298439,-500.0,0.00055342,120]
[357034077,1743604298481,-515.80926446,0.00055342,120]
[357034078,1743604298518,-500.0,0.00055342,120]
[357034079,1743604298556,-643.99559096,0.00055342,120]
[357034080,1743604298594,-500.0,0.00055342,120]
[357034081,1743604298633,-489.69584107,0.00055342,120]
[357034082,1743604298671,-513.68318628,0.00055342,120]
[357034083,1743604298709,-500.0,0.00055342,120]
[357034084,1743604298748,-512.84605579,0.00055342,120]
[357034085,1743604298786,-500.0,0.00055342,120]
[357034086,1743604298827,-358.36314185,0.00055342,120]
[357034087,1743604298865,-519.25310798,0.00055342,120]
[357034088,1743604298907,-500.0,0.00055342,120]
[357034089,1743604298942,-515.8040561,0.00055342,120]
[357034090,1743604298980,-472.94509242,0.00055342,120]
[357034091,1743604299018,-528.45127867,0.00055342,120]
[357034092,1743604299060,-522.16661322,0.00055342,120]
[357034093,1743604299098,-500.0,0.00055342,120]
[357034094,1743604299139,-514.11108152,0.00055342,120]
[357034095,1743604299183,-500.0,0.00055342,120]
[357034096,1743604299226,-500.0,0.00055342,120]
[357034097,1743604299268,-511.93908469,0.00055342,120]
[357034098,1743604299311,-880.89377971,0.00055342,30]
[357034099,1743604299353,-500.0,0.00055342,120]
[357034100,1743604299393,-495.09315885,0.00055342,120]
[357034101,1743604299438,-521.60434308,0.00055342,120]
[357034102,1743604299478,-509.49516989,0.00055342,120]
[357034103,1743604299517,-500.0,0.00055342,120]
[357034104,1743604299556,-500.0,0.00055342,120]
[357034105,1743604299593,-504.80016759,0.00055342,120]
[357034106,1743604299630,-500.0,0.00055342,120]
[357034107,1743604299667,-190.40185841,0.00055342,120]
[357034108,1743604299709,-188.46211288,0.00055342,120]
[357034109,1743604299747,-508.93599954,0.00055342,120]
[357034110,1743604299783,-520.36768739,0.00055342,120]
[357034111,1743604299821,-536.44190417,0.00055342,120]
[357034112,1743604299863,-517.62743772,0.00055342,120]
[357034113,1743604299902,-500.0,0.00055342,120]
[357034114,1743604299941,-287.02454722,0.00055342,120]
[357034115,1743604299981,-524.24337423,0.00055342,120]
[357034116,1743604300018,-530.10807108,0.00055342,120]
[357034117,1743604300055,-347.18264714,0.00055342,120]
[357034118,1743604300092,-318.91380748,0.00055342,120]
[357034119,1743604300130,-514.32923088,0.00055342,120]
[357034120,1743604300167,-517.29423847,0.00055342,120]
[357034121,1743604300206,-500.0,0.00055342,120]
[357034122,1743604300244,-534.3602699,0.00055342,120]
[357034123,1743604300281,-515.44200414,0.00055342,120]
[357034124,1743604300320,-500.0,0.00055342,120]
[357034125,1743604300358,-500.0,0.00055342,120]
[357034126,1743604300398,-500.0,0.00055342,120]
[357034127,1743604300435,-500.0,0.00055342,120]
[357034128,1743604300472,-500.0,0.00055342,120]
[357034129,1743604300509,-528.95742661,0.00055342,120]
[357034130,1743604300546,-500.0,0.00055342,120]
[357034131,1743604300582,-517.73596074,0.00055342,120]
[357034132,1743604300618,-500.0,0.00055342,30]
[357034133,1743604300654,-500.0,0.00055342,120]
[357034134,1743604300690,-500.0,0.00055342,120]
[357034135,1743604300857,-500.0,0.00055342,120]
[357034136,1743604300901,-500.0,0.00055342,120]
[357034137,1743604300938,-500.0,0.00055342,120]
[357034138,1743604300975,-531.86811136,0.00055342,120]
[357034139,1743604301013,-500.0,0.00055342,120]
[357034140,1743604301054,-500.0,0.00055342,120]
[357034141,1743604301092,-500.0,0.00055342,120]
[357034142,1743604301131,-500.0,0.00055342,120]
[357034143,1743604301174,-301.15063285,0.00055342,120]
[357034144,1743604301213,-500.0,0.00055342,120]
[357034145,1743604301254,-223.28279011,0.00055342,120]
[357034146,1743604301294,-500.0,0.00055342,120]
[357034147,1743604301334,-500.0,0.00055342,120]
[357034148,1743604301373,-533.51993698,0.00055342,120]
[357034149,1743604301415,-500.0,0.00055342,120]
[357034150,1743604301455,-500.0,0.00055342,120]
[357034151,1743604301493,-500.0,0.00055342,120]
[357034152,1743604301532,-500.0,0.00055342,120]
[357034153,1743604301571,-500.0,0.00055342,120]
[357034154,1743604301613,-500.0,0.00055342,120]
[357034155,1743604301659,-532.83120935,0.00055342,120]
[357034156,1743604301701,-596.0,0.00055342,120]
[357034157,1743604301740,-500.0,0.00055342,120]
[357034158,1743604301779,-500.0,0.00055342,120]
[357034159,1743604301818,-500.0,0.00055342,120]
[357034160,1743604301857,-500.0,0.00055342,120]
[357034161,1743604301895,-500.0,0.00055342,120]
[357034162,1743604301935,-500.0,0.00055342,120]
[357034163,1743604301973,-562.23591301,0.00055342,120]
[357034164,1743604302010,-500.0,0.00055342,120]
[357034165,1743604302048,-500.0,0.00055342,120]
[357034166,1743604302085,-500.0,0.00055342,120]
[357034167,1743604302122,-515.87849983,0.00055342,120]
[357034168,1743604302158,-500.0,0.00055342,120]
[357034169,1743604302194,-500.0,0.00055342,120]
[357034170,1743604302230,-500.0,0.00055342,120]
[357034171,1743604302266,-500.0,0.00055342,120]
[357034172,1743604302315,-500.0,0.00055342,120]
[357034173,1743604302362,-500.0,0.00055342,120]
[357034174,1743604302410,-500.0,0.00055342,120]
[357034175,1743604302459,-500.0,0.00055342,120]
[357034176,1743604302500,-500.0,0.00055342,120]
[357034177,1743604302548,-500.0,0.00055342,120]
[357034178,1743604302594,-500.0,0.00055342,120]
[357034179,1743604302637,-500.0,0.00055342,120]
[357034180,1743604302683,-540.79905808,0.00055342,120]
[357034181,1743604302728,-511.90012542,0.00055342,120]
[357034182,1743604302770,-500.0,0.00055342,120]
[357034183,1743604302817,-500.0,0.00055342,120]
[357034184,1743604302865,-500.0,0.00055342,120]
[357034185,1743604302914,-500.0,0.00055342,120]
[357034186,1743604302960,-500.0,0.00055342,120]
[357034187,1743604303006,-500.0,0.00055342,120]
[357034188,1743604303046,-175.50517661,0.00055342,120]
[357034189,1743604303086,-500.0,0.00055342,120]
[357034190,1743604303126,-500.0,0.00055342,120]
[357034191,1743604303166,-500.0,0.00055342,120]
[357034192,1743604303207,-500.0,0.00055342,120]
[357034193,1743604303250,-591.11461321,0.00055342,120]
[357034194,1743604303295,-500.0,0.00055342,120]
[357034195,1743604303340,-500.0,0.00055342,120]
[357034196,1743604303388,-612.8803095,0.00055342,120]
[357034197,1743604303438,-500.0,0.00055342,120]
[357034198,1743604303482,-500.0,0.00055342,120]
[357034199,1743604303524,-500.0,0.00055342,120]
[357034200,1743604303568,-500.0,0.00055342,120]
[357034201,1743604303611,-500.0,0.00055342,120]
[357034202,1743604303657,-500.0,0.00055342,120]
[357034203,1743604303698,-500.0,0.00055342,120]
[357034204,1743604303740,-500.0,0.00055342,120]
[357034205,1743604303782,-500.0,0.00055342,120]
[357034206,1743604303826,-500.0,0.00055342,120]
[357034207,1743604303870,-500.0,0.00055342,120]
[357034208,1743604304019,-500.0,0.00055342,120]
[357034209,1743604304093,-500.0,0.00055342,120]
[357034210,1743604304130,-500.0,0.00055342,120]
[357034211,1743604304169,-500.0,0.00055342,120]
[357034212,1743604304208,-500.0,0.00055342,120]
[357034213,1743604304246,-500.0,0.00055342,120]
[357034214,1743604304283,-500.0,0.00055342,120]
[357034215,1743604304321,-500.0,0.00055342,120]
[357034216,1743604304359,-500.0,0.00055342,120]
[357034217,1743604304397,-500.0,0.00055342,120]
[357034218,1743604304436,-602.465563,0.00055342,120]
[357034219,1743604304474,-500.0,0.00055342,120]
[357034220,1743604304510,-500.0,0.00055342,120]
[357034221,1743604304545,-500.0,0.00055342,120]
[357034222,1743604304580,-500.0,0.00055342,120]
[357034223,1743604304614,-500.0,0.00055342,120]
[357034224,1743604304651,-500.0,0.00055342,120]
[357034225,1743604304685,-500.0,0.00055342,120]
[357034226,1743604304721,-500.0,0.00055342,120]
[357034227,1743604304755,-500.0,0.00055342,120]
[357034228,1743604304791,-500.0,0.00055342,120]
[357034229,1743604304826,-562.12911652,0.00055342,120]
[357034230,1743604304861,-500.0,0.00055342,120]
[357034231,1743604304895,-500.0,0.00055342,120]
[357034232,1743604304932,-500.0,0.00055342,120]
[357034233,1743604304965,-500.0,0.00055342,120]
[357034234,1743604305001,-500.0,0.00055342,120]
[357034235,1743604305035,-500.0,0.00055342,120]
[357034236,1743604305068,-500.0,0.00055342,120]
[357034237,1743604305102,-500.0,0.00055342,120]
[357034238,1743604305136,-500.0,0.00055342,120]
[357034239,1743604305172,-500.0,0.00055342,120]
[357034240,1743604305208,-500.0,0.00055342,120]
[357034241,1743604305244,-500.0,0.00055342,120]
[357034242,1743604305278,-500.0,0.00055342,120]
[357034243,1743604305314,-500.0,0.00055342,120]
[357034244,1743604305349,-541.04024837,0.00055342,120]
[357034245,1743604305385,-500.0,0.00055342,120]
[357034246,1743604305422,-500.0,0.00055342,120]
[357034247,1743604305459,-510.43946927,0.00055342,120]
[357034248,1743604305495,-1000.0,0.00055342,120]
[357034249,1743604305531,-501.61752373,0.00055342,120]
[357034250,1743604305567,-500.0,0.00055342,120]
[357034251,1743604305602,-500.0,0.00055342,120]
[357034252,1743604305637,-500.0,0.00055342,120]
[357034253,1743604305672,-513.91941385,0.00055342,120]
[357034254,1743604305708,-500.0,0.00055342,120]
[357034255,1743604305744,-500.0,0.00055342,120]
[357034256,1743604305780,-500.0,0.00055342,120]
[357034257,1743604305816,-500.0,0.00055342,120]
[357034258,1743604305851,-500.0,0.00055342,120]
[357034259,1743604305886,-500.0,0.00055342,120]
[357034260,1743604305922,-500.0,0.00055342,120]
[357034261,1743604305957,-578.93245375,0.00055342,120]
[357034262,1743604305993,-500.0,0.00055342,120]
[357034263,1743604306031,-500.0,0.00055342,120]
[357034264,1743604306066,-510.91799838,0.00055342,120]
[357034265,1743604306100,-500.0,0.00055342,120]
[357034266,1743604306135,-530.7485679,0.00055342,120]
[357034267,1743604306170,-500.0,0.00055342,120]
[357034268,1743604306205,-500.0,0.00055342,120]
[357034269,1743604306239,-500.0,0.00055342,120]
[357034270,1743604306275,-500.0,0.00055342,120]
[357034271,1743604306311,-500.0,0.00055342,120]
[357034272,1743604306347,-500.0,0.00055342,120]
[357034273,1743604306383,-576.61836287,0.00055342,120]
[357034274,1743604306419,-500.0,0.00055342,120]
[357034275,1743604306456,-500.0,0.00055342,120]
[357034276,1743604306491,-497.42170741,0.00055342,120]
[357034277,1743604306525,-500.0,0.00055342,120]
[357034278,1743604306561,-500.0,0.00055342,120]
[357034279,1743604306595,-518.37672789,0.00055342,120]
[357034280,1743604306629,-500.0,0.00055342,120]
[357034281,1743604306662,-500.0,0.00055342,120]
[357034282,1743604306696,-500.0,0.00055342,30]
[357034283,1743604306732,-500.0,0.00055342,120]
[357034284,1743604306767,-549.48307083,0.00055342,120]
[357034285,1743604306804,-500.48673988,0.00055342,120]
[357034286,1743604306842,-206.70674892,0.00055342,120]
[357034287,1743604306880,-500.0,0.00055342,120]
[357034288,1743604306918,-500.0,0.00055342,60]
[357034289,1743604306959,-500.0,0.00055342,120]
[357034290,1743604307112,-509.44414639,0.00055342,120]
[357034291,1743604307150,-500.0,0.00055342,120]
[357034292,1743604307189,-505.68397307,0.00055342,120]
[357034293,1743604307225,-500.0,0.00055342,120]
[357034294,1743604307263,-500.0,0.00055342,120]
[357034295,1743604307299,-552.76404422,0.00055342,120]
[357034296,1743604307335,-500.0,0.00055342,120]
[357034297,1743604307373,-211.03858745,0.00055342,120]
[357034298,1743604307410,-356.76442825,0.00055342,120]
[357034299,1743604307446,-502.04175131,0.00055342,120]
[357034300,1743604307483,-500.0,0.00055342,120]
[357034301,1743604307520,-500.0,0.00055342,120]
[357034302,1743604307557,-150.0,0.00055342,120]
[357034303,1743604307594,-500.0,0.00055342,120]
[357034304,1743604307631,-500.0,0.00055342,120]
[357034305,1743604307668,-500.0,0.00055342,120]
[357034306,1743604307705,-500.0,0.00055342,120]
[357034307,1743604307743,-500.0,0.00055342,120]
[357034308,1743604307778,-500.0,0.00055342,120]
[357034309,1743604307813,-530.54649825,0.00055342,120]
[357034310,1743604307849,-500.0,0.00055342,120]
[357034311,1743604307884,-500.0,0.00055342,120]
[357034312,1743604307918,-593.41,0.00055342,120]
[357034313,1743604307953,-529.67051731,0.00055342,120]
[357034314,1743604307988,-500.0,0.00055342,120]
[357034315,1743604308025,-500.0,0.00055342,120]
[357034316,1743604308060,-500.0,0.00055342,120]
[357034317,1743604308096,-506.47926252,0.00055342,120]
[357034318,1743604308131,-500.0,0.00055342,120]
[357034319,1743604308168,-500.0,0.00055342,120]
[357034320,1743604308204,-500.0,0.00055342,120]
[357034321,1743604308241,-500.0,0.00055342,120]
[357034322,1743604308276,-500.0,0.00055342,120]
[357034323,1743604308313,-608.39912704,0.00055342,120]